[Event "Early-Titled-Tuesday-Blitz-January-30-2024"]
[Site "Chess.com"]
[Date "2024.01.30"]
[Round "5"]
[White "AradNazari"]
[Black "VitaliyChayka"]
[Result "0-1"]
[WhiteElo "2679"]
[BlackElo "2434"]
[TimeControl "180+1"]
[EndTime "8:56:55 PST"]
[Termination "VitaliyChayka won on time"]

1. e4 {[%clk 0:02:56.6]} 1... d6 {[%clk 0:03:00.3]} 2. d4 {[%clk 0:02:26.5]}
2... Nf6 {[%clk 0:03:00.3]} 3. Nc3 {[%clk 0:02:15.4]} 3... e5 {[%clk 0:03:01]}
4. Nf3 {[%clk 0:02:11.3]} 4... Nbd7 {[%clk 0:03:01.1]} 5. Bc4 {[%clk 0:02:10.9]}
5... Be7 {[%clk 0:03:01.5]} 6. O-O {[%clk 0:02:11]} 6... O-O {[%clk 0:03:02]} 7.
a4 {[%clk 0:02:11.5]} 7... a5 {[%clk 0:03:00.8]} 8. h3 {[%clk 0:02:10.7]} 8...
c6 {[%clk 0:03:01.3]} 9. Re1 {[%clk 0:02:09.1]} 9... exd4 {[%clk 0:03:01.8]} 10.
Nxd4 {[%clk 0:02:08.5]} 10... Nc5 {[%clk 0:03:02.7]} 11. Bg5 {[%clk 0:01:47.5]}
11... Be6 {[%clk 0:03:02]} 12. Bxe6 {[%clk 0:01:39.2]} 12... fxe6 {[%clk
0:03:02.9]} 13. e5 {[%clk 0:01:36.6]} 13... Nd5 {[%clk 0:02:13]} 14. Bxe7 {[%clk
0:01:29.7]} 14... Qxe7 {[%clk 0:02:13.9]} 15. exd6 {[%clk 0:01:30.1]} 15... Qxd6
{[%clk 0:02:13.8]} 16. Ne4 {[%clk 0:01:30.7]} 16... Nxe4 {[%clk 0:02:10.6]} 17.
Rxe4 {[%clk 0:01:31.6]} 17... Rf6 {[%clk 0:02:11]} 18. Qe2 {[%clk 0:00:55.9]}
18... Raf8 {[%clk 0:02:07]} 19. Rxe6 {[%clk 0:00:47.3]} 19... Nf4 {[%clk
0:02:00.5]} 20. Rxd6 {[%clk 0:00:32]} 20... Nxe2+ {[%clk 0:02:00.4]} 21. Nxe2
{[%clk 0:00:32.4]} 21... Rxd6 {[%clk 0:02:01.2]} 22. Kf1 {[%clk 0:00:13.8]}
22... Rd2 {[%clk 0:01:57]} 23. Rc1 {[%clk 0:00:14.3]} 23... Re8 {[%clk
0:01:52.8]} 24. Nf4 {[%clk 0:00:12.5]} 24... Re4 {[%clk 0:01:47.5]} 25. Nd3
{[%clk 0:00:12.2]} 25... Ree2 {[%clk 0:01:36.5]} 26. c3 {[%clk 0:00:05]} 26...
Re7 {[%clk 0:01:26.3]} 27. Nc5 {[%clk 0:00:02.9]} 27... Rxb2 {[%clk 0:01:25.3]}
28. Re1 {[%clk 0:00:02.8]} 28... Rxe1+ {[%clk 0:01:23.5]} 29. Kxe1 {[%clk
0:00:03.7]} 29... Kf7 {[%clk 0:01:10.4]} 30. Nd3 {[%clk 0:00:02.5]} 30... Ra2
{[%clk 0:01:10.5]} 31. Nc5 {[%clk 0:00:02]} 31... b5 {[%clk 0:01:02.8]} 0-1

[Event "Early-Titled-Tuesday-Blitz-January-30-2024"]
[Site "Chess.com"]
[Date "2024.01.30"]
[Round "5"]
[White "wonderfultime"]
[Black "scarabee43"]
[Result "1-0"]
[WhiteElo "3010"]
[BlackElo "2836"]
[TimeControl "180+1"]
[EndTime "8:56:58 PST"]
[Termination "wonderfultime won by resignation"]

1. d4 {[%clk 0:02:53.7]} 1... Nf6 {[%clk 0:03:00.2]} 2. Nf3 {[%clk 0:02:49.8]}
2... d5 {[%clk 0:03:00]} 3. Bf4 {[%clk 0:02:50.2]} 3... c5 {[%clk 0:02:55.5]} 4.
c3 {[%clk 0:02:50.3]} 4... cxd4 {[%clk 0:02:48.9]} 5. cxd4 {[%clk 0:02:50.3]}
5... Bf5 {[%clk 0:02:48.1]} 6. Nc3 {[%clk 0:02:49.9]} 6... e6 {[%clk 0:02:47.3]}
7. Qb3 {[%clk 0:02:46.4]} 7... Qb6 {[%clk 0:02:32.9]} 8. e3 {[%clk 0:02:33]}
8... Be7 {[%clk 0:02:28.8]} 9. Bb5+ {[%clk 0:02:32.2]} 9... Nc6 {[%clk
0:01:52.1]} 10. Ne5 {[%clk 0:02:32.1]} 10... Rc8 {[%clk 0:01:52.2]} 11. O-O
{[%clk 0:02:31.7]} 11... O-O {[%clk 0:01:51.2]} 12. Bxc6 {[%clk 0:02:28.7]}
12... bxc6 {[%clk 0:01:51.2]} 13. Na4 {[%clk 0:02:12]} 13... Qxb3 {[%clk
0:01:41.6]} 14. axb3 {[%clk 0:02:12.9]} 14... Ne4 {[%clk 0:01:41.6]} 15. Rfc1
{[%clk 0:02:09.4]} 15... g5 {[%clk 0:00:53.1]} 16. Bg3 {[%clk 0:02:06.4]} 16...
h5 {[%clk 0:00:49.2]} 17. Nxc6 {[%clk 0:02:01.5]} 17... Bf6 {[%clk 0:00:48.8]}
18. Be5 {[%clk 0:01:59.7]} 18... Kg7 {[%clk 0:00:48.9]} 19. Bxf6+ {[%clk
0:00:58.3]} 19... Kxf6 {[%clk 0:00:48.6]} 20. b4 {[%clk 0:00:54.6]} 20... Nd2
{[%clk 0:00:45.1]} 21. Na5 {[%clk 0:00:54.8]} 21... Rb8 {[%clk 0:00:32.9]} 22.
Nc5 {[%clk 0:00:54.9]} 22... e5 {[%clk 0:00:14.7]} 23. dxe5+ {[%clk 0:00:54]}
23... Kg7 {[%clk 0:00:15]} 24. Nc6 {[%clk 0:00:53]} 24... Rb6 {[%clk 0:00:14.5]}
25. Nd4 {[%clk 0:00:53.6]} 25... Bg6 {[%clk 0:00:13.7]} 26. Nd7 {[%clk
0:00:53.2]} 26... Rxb4 {[%clk 0:00:11.8]} 27. Nxf8 {[%clk 0:00:53.9]} 27... Kxf8
{[%clk 0:00:12]} 28. Rxa7 {[%clk 0:00:54.1]} 28... Rxb2 {[%clk 0:00:12.4]} 29.
e6 {[%clk 0:00:46.9]} 29... Ne4 {[%clk 0:00:09.3]} 30. e7+ {[%clk 0:00:46.1]}
1-0

[Event "Early-Titled-Tuesday-Blitz-January-30-2024"]
[Site "Chess.com"]
[Date "2024.01.30"]
[Round "5"]
[White "Louis-Paulsen-Fan"]
[Black "EfrenRamos1"]
[Result "1-0"]
[WhiteElo "2268"]
[BlackElo "2423"]
[TimeControl "180+1"]
[EndTime "8:57:03 PST"]
[Termination "Louis-Paulsen-Fan won by resignation"]

1. d4 {[%clk 0:03:00.9]} 1... Nf6 {[%clk 0:02:51.9]} 2. Nf3 {[%clk 0:03:01]}
2... d5 {[%clk 0:02:48.1]} 3. c4 {[%clk 0:03:01.1]} 3... c6 {[%clk 0:02:47.5]}
4. Nc3 {[%clk 0:03:01.3]} 4... g6 {[%clk 0:02:46.7]} 5. cxd5 {[%clk 0:02:59.1]}
5... cxd5 {[%clk 0:02:46]} 6. Bg5 {[%clk 0:02:59]} 6... Ne4 {[%clk 0:02:43.2]}
7. Bh4 {[%clk 0:02:55.7]} 7... Bg7 {[%clk 0:02:42.5]} 8. e3 {[%clk 0:02:55.5]}
8... O-O {[%clk 0:02:41.3]} 9. Bd3 {[%clk 0:02:53.2]} 9... Nxc3 {[%clk
0:02:36.4]} 10. bxc3 {[%clk 0:02:52.1]} 10... Nc6 {[%clk 0:02:33]} 11. O-O
{[%clk 0:02:51.5]} 11... Bg4 {[%clk 0:02:28.5]} 12. c4 {[%clk 0:02:41.3]} 12...
dxc4 {[%clk 0:02:16.8]} 13. Bxc4 {[%clk 0:02:40.7]} 13... Rc8 {[%clk 0:02:15.4]}
14. Be2 {[%clk 0:02:35.2]} 14... Qa5 {[%clk 0:02:06]} 15. h3 {[%clk 0:02:12.4]}
15... Bf5 {[%clk 0:02:00.5]} 16. Qb3 {[%clk 0:02:04.6]} 16... Be4 {[%clk
0:01:37.9]} 17. Rac1 {[%clk 0:01:44.1]} 17... Qb6 {[%clk 0:00:20.1]} 18. Qxb6
{[%clk 0:01:31.7]} 18... axb6 {[%clk 0:00:18.5]} 19. Nd2 {[%clk 0:01:32.2]}
19... Bf5 {[%clk 0:00:17.1]} 20. g4 {[%clk 0:01:32.2]} 20... Bd7 {[%clk
0:00:16.6]} 21. Rb1 {[%clk 0:01:31.6]} 21... e6 {[%clk 0:00:15.2]} 22. Rxb6
{[%clk 0:01:27.9]} 22... Ra8 {[%clk 0:00:15.6]} 23. Rxb7 {[%clk 0:00:49.3]}
23... Rxa2 {[%clk 0:00:14.2]} 24. Rxd7 {[%clk 0:00:44]} 24... Rxd2 {[%clk
0:00:14.7]} 25. Bf3 {[%clk 0:00:44.3]} 25... Nb4 {[%clk 0:00:14.4]} 26. Rb1
{[%clk 0:00:38.8]} 26... Nd3 {[%clk 0:00:12.4]} 27. Rbb7 {[%clk 0:00:33.7]}
27... f6 {[%clk 0:00:10.8]} 28. Rxg7+ {[%clk 0:00:31.2]} 1-0

[Event "Early-Titled-Tuesday-Blitz-January-30-2024"]
[Site "Chess.com"]
[Date "2024.01.30"]
[Round "5"]
[White "Zq1"]
[Black "PedroGil25"]
[Result "0-1"]
[WhiteElo "2523"]
[BlackElo "2413"]
[TimeControl "180+1"]
[EndTime "8:57:04 PST"]
[Termination "PedroGil25 won by resignation"]

1. d4 {[%clk 0:03:00.9]} 1... Nf6 {[%clk 0:02:59]} 2. c4 {[%clk 0:03:00.8]} 2...
e6 {[%clk 0:02:58.9]} 3. g3 {[%clk 0:02:59.1]} 3... Bb4+ {[%clk 0:02:59.2]} 4.
Nd2 {[%clk 0:02:58.2]} 4... O-O {[%clk 0:02:59.1]} 5. Bg2 {[%clk 0:02:58]} 5...
d6 {[%clk 0:02:58]} 6. Nf3 {[%clk 0:02:57.3]} 6... Nc6 {[%clk 0:02:57.5]} 7. O-O
{[%clk 0:02:57]} 7... Bxd2 {[%clk 0:02:57.9]} 8. Qxd2 {[%clk 0:02:54.3]} 8... e5
{[%clk 0:02:58.8]} 9. b3 {[%clk 0:02:47.8]} 9... Qe7 {[%clk 0:02:55]} 10. dxe5
{[%clk 0:02:34.7]} 10... dxe5 {[%clk 0:02:53.9]} 11. a4 {[%clk 0:02:28]} 11...
Rd8 {[%clk 0:02:50.4]} 12. Qc3 {[%clk 0:02:22.3]} 12... Nd4 {[%clk 0:02:48.1]}
13. Re1 {[%clk 0:02:13]} 13... Bg4 {[%clk 0:02:44.8]} 14. Bb2 {[%clk 0:02:04.5]}
14... c5 {[%clk 0:02:43.4]} 15. Rac1 {[%clk 0:01:45.8]} 15... Ne4 {[%clk
0:02:30.8]} 16. Qe3 {[%clk 0:01:38.2]} 16... f5 {[%clk 0:02:00.5]} 17. Nh4
{[%clk 0:01:22.2]} 17... Nd6 {[%clk 0:01:31.6]} 18. Bd5+ {[%clk 0:01:15.1]}
18... Kh8 {[%clk 0:01:30.7]} 19. f4 {[%clk 0:01:05.9]} 19... Re8 {[%clk
0:01:27]} 20. fxe5 {[%clk 0:00:46.4]} 20... Qxe5 {[%clk 0:01:19.1]} 21. Qxe5
{[%clk 0:00:46.3]} 21... Rxe5 {[%clk 0:01:20]} 22. Bxd4 {[%clk 0:00:44.9]} 22...
cxd4 {[%clk 0:01:17.5]} 23. Kf2 {[%clk 0:00:38.1]} 23... Ne4+ {[%clk 0:01:15.4]}
24. Bxe4 {[%clk 0:00:20.1]} 24... fxe4 {[%clk 0:01:16.3]} 25. Ng2 {[%clk
0:00:17.9]} 25... Rf8+ {[%clk 0:01:16]} 26. Kg1 {[%clk 0:00:17.8]} 26... a5
{[%clk 0:01:11.5]} 27. h4 {[%clk 0:00:17]} 27... h6 {[%clk 0:00:59.4]} 28. Nf4
{[%clk 0:00:16.9]} 28... g5 {[%clk 0:00:59.8]} 29. hxg5 {[%clk 0:00:14.6]} 29...
hxg5 {[%clk 0:01:00.7]} 30. Nd5 {[%clk 0:00:14.6]} 30... e3 {[%clk 0:00:58.8]}
31. Rf1 {[%clk 0:00:10.2]} 31... Rxf1+ {[%clk 0:00:55.3]} 32. Rxf1 {[%clk
0:00:09.3]} 32... Bxe2 {[%clk 0:00:55.5]} 33. Rf7 {[%clk 0:00:09.2]} 33... Bh5
{[%clk 0:00:49.4]} 0-1

[Event "Early-Titled-Tuesday-Blitz-January-30-2024"]
[Site "Chess.com"]
[Date "2024.01.30"]
[Round "5"]
[White "aksuliini1"]
[Black "Shodikulov_Jamshid1990"]
[Result "1-0"]
[WhiteElo "2532"]
[BlackElo "2397"]
[TimeControl "180+1"]
[EndTime "8:57:05 PST"]
[Termination "aksuliini1 won by resignation"]

1. e4 {[%clk 0:03:00.9]} 1... c5 {[%clk 0:03:00.2]} 2. Nf3 {[%clk 0:02:56.6]}
2... d6 {[%clk 0:03:00.2]} 3. d4 {[%clk 0:02:54.8]} 3... cxd4 {[%clk 0:03:01.1]}
4. Nxd4 {[%clk 0:02:55.3]} 4... Nf6 {[%clk 0:03:00.4]} 5. Nc3 {[%clk 0:02:55]}
5... a6 {[%clk 0:03:01]} 6. h3 {[%clk 0:02:54]} 6... e6 {[%clk 0:02:57.3]} 7. g4
{[%clk 0:02:53.3]} 7... b5 {[%clk 0:02:58]} 8. Bg2 {[%clk 0:02:51.1]} 8... Bb7
{[%clk 0:02:58.4]} 9. g5 {[%clk 0:02:36.9]} 9... Nfd7 {[%clk 0:02:58.1]} 10. h4
{[%clk 0:02:34]} 10... Qc7 {[%clk 0:02:51.6]} 11. Be3 {[%clk 0:02:30.3]} 11...
Nb6 {[%clk 0:02:48.3]} 12. O-O {[%clk 0:02:13.2]} 12... Nc4 {[%clk 0:02:47]} 13.
Bc1 {[%clk 0:02:13.7]} 13... Nd7 {[%clk 0:02:44.6]} 14. b3 {[%clk 0:02:09.3]}
14... Ncb6 {[%clk 0:02:38.8]} 15. Bb2 {[%clk 0:02:08.1]} 15... Rc8 {[%clk
0:02:38]} 16. Rc1 {[%clk 0:01:52]} 16... Be7 {[%clk 0:02:16.8]} 17. Nce2 {[%clk
0:01:46.5]} 17... O-O {[%clk 0:02:13.1]} 18. Ng3 {[%clk 0:01:45]} 18... d5
{[%clk 0:02:05.4]} 19. Qg4 {[%clk 0:01:15.3]} 19... Ne5 {[%clk 0:02:03.5]} 20.
Qe2 {[%clk 0:01:11.9]} 20... dxe4 {[%clk 0:02:01.5]} 21. Bxe4 {[%clk 0:01:09.1]}
21... Bxe4 {[%clk 0:02:00.9]} 22. Qxe4 {[%clk 0:01:09.3]} 22... Ned7 {[%clk
0:01:38.1]} 23. Rcd1 {[%clk 0:00:38.6]} 23... Nc5 {[%clk 0:01:21.2]} 24. Qg4
{[%clk 0:00:38.1]} 24... Rcd8 {[%clk 0:01:00.7]} 25. Rfe1 {[%clk 0:00:37]} 25...
Nd5 {[%clk 0:00:55.6]} 26. Nh5 {[%clk 0:00:34]} 26... g6 {[%clk 0:00:50.4]} 27.
Ng3 {[%clk 0:00:33.5]} 27... Qf4 {[%clk 0:00:48.4]} 28. Qxf4 {[%clk 0:00:32.5]}
28... Nxf4 {[%clk 0:00:49.3]} 29. Nc6 {[%clk 0:00:32.7]} 29... Rde8 {[%clk
0:00:43.9]} 30. Ba3 {[%clk 0:00:26]} 30... b4 {[%clk 0:00:33.6]} 31. Bxb4 {[%clk
0:00:24.1]} 31... Nd5 {[%clk 0:00:33.4]} 32. Nxe7+ {[%clk 0:00:23.2]} 1-0

[Event "Early-Titled-Tuesday-Blitz-January-30-2024"]
[Site "Chess.com"]
[Date "2024.01.30"]
[Round "5"]
[White "jjlai1111"]
[Black "GameOverBro"]
[Result "1-0"]
[WhiteElo "2332"]
[BlackElo "2553"]
[TimeControl "180+1"]
[EndTime "8:57:14 PST"]
[Termination "jjlai1111 won by resignation"]

1. d4 {[%clk 0:03:00.9]} 1... Nf6 {[%clk 0:02:49.4]} 2. c4 {[%clk 0:02:58.7]}
2... e6 {[%clk 0:02:49.7]} 3. Nc3 {[%clk 0:02:57.5]} 3... Bb4 {[%clk 0:02:49.4]}
4. Qc2 {[%clk 0:02:55.4]} 4... b6 {[%clk 0:02:48.2]} 5. e4 {[%clk 0:02:52.9]}
5... Bb7 {[%clk 0:02:48.1]} 6. Bd3 {[%clk 0:02:53.1]} 6... Bxc3+ {[%clk
0:02:39.6]} 7. bxc3 {[%clk 0:02:52.4]} 7... d6 {[%clk 0:02:37.8]} 8. Nf3 {[%clk
0:02:51.7]} 8... e5 {[%clk 0:02:29]} 9. O-O {[%clk 0:02:48]} 9... Nc6 {[%clk
0:02:27.8]} 10. Bg5 {[%clk 0:02:35]} 10... h6 {[%clk 0:02:27.9]} 11. Bh4 {[%clk
0:02:19]} 11... g5 {[%clk 0:02:26.6]} 12. d5 {[%clk 0:02:19.2]} 12... Ne7 {[%clk
0:02:13.9]} 13. Bg3 {[%clk 0:02:19.1]} 13... Ng6 {[%clk 0:02:10.6]} 14. c5
{[%clk 0:02:01.7]} 14... bxc5 {[%clk 0:02:10.3]} 15. Qa4+ {[%clk 0:01:58.6]}
15... Kf8 {[%clk 0:02:08.8]} 16. Rab1 {[%clk 0:01:57]} 16... Bc8 {[%clk
0:02:08.8]} 17. Bb5 {[%clk 0:01:32.8]} 17... Bd7 {[%clk 0:02:01.5]} 18. Bxd7
{[%clk 0:01:15.2]} 18... Nxd7 {[%clk 0:01:46.7]} 19. Rb7 {[%clk 0:01:14]} 19...
Nb6 {[%clk 0:01:33.5]} 20. Qc6 {[%clk 0:01:11.5]} 20... Rc8 {[%clk 0:01:33.6]}
21. Rxa7 {[%clk 0:01:10.7]} 21... Ne7 {[%clk 0:01:29.9]} 22. Qb5 {[%clk
0:00:59.3]} 22... Ra8 {[%clk 0:01:26.4]} 23. Rxa8 {[%clk 0:00:51.5]} 23... Qxa8
{[%clk 0:01:27.3]} 24. Nxe5 {[%clk 0:00:45.4]} 24... Qxa2 {[%clk 0:01:13.6]} 25.
Nd7+ {[%clk 0:00:34.7]} 25... Kg7 {[%clk 0:01:02.3]} 26. Nxb6 {[%clk 0:00:33.8]}
26... cxb6 {[%clk 0:01:02.6]} 27. Bxd6 {[%clk 0:00:34.4]} 27... Ng6 {[%clk
0:00:59.4]} 28. Qxb6 {[%clk 0:00:34.7]} 28... Re8 {[%clk 0:00:59]} 29. Bxc5
{[%clk 0:00:31.5]} 29... Rxe4 {[%clk 0:00:57]} 30. Bd4+ {[%clk 0:00:31.9]} 30...
Rxd4 {[%clk 0:00:56]} 31. Qxd4+ {[%clk 0:00:31.8]} 31... Kh7 {[%clk 0:00:56.5]}
32. d6 {[%clk 0:00:32.3]} 32... Nf4 {[%clk 0:00:51.6]} 33. Qe4+ {[%clk
0:00:28.9]} 33... Kg7 {[%clk 0:00:49.5]} 34. d7 {[%clk 0:00:27.1]} 34... Qd2
{[%clk 0:00:49.2]} 35. Qd4+ {[%clk 0:00:25.3]} 35... Qxd4 {[%clk 0:00:48.5]} 36.
cxd4 {[%clk 0:00:25.9]} 36... Ne6 {[%clk 0:00:49.4]} 37. Re1 {[%clk 0:00:25.8]}
1-0

[Event "Early-Titled-Tuesday-Blitz-January-30-2024"]
[Site "Chess.com"]
[Date "2024.01.30"]
[Round "5"]
[White "Ducke13"]
[Black "Flaccidmoves"]
[Result "1-0"]
[WhiteElo "2293"]
[BlackElo "2448"]
[TimeControl "180+1"]
[EndTime "8:57:16 PST"]
[Termination "Ducke13 won by checkmate"]

1. d4 {[%clk 0:03:00.9]} 1... Nf6 {[%clk 0:02:58.7]} 2. g3 {[%clk 0:03:00.4]}
2... d5 {[%clk 0:02:55.6]} 3. Nf3 {[%clk 0:02:59]} 3... Bf5 {[%clk 0:02:55.5]}
4. c4 {[%clk 0:02:58.8]} 4... c6 {[%clk 0:02:55.3]} 5. Nc3 {[%clk 0:02:59.2]}
5... e6 {[%clk 0:02:28]} 6. Nh4 {[%clk 0:02:57.7]} 6... Bg4 {[%clk 0:02:24.9]}
7. h3 {[%clk 0:02:57.7]} 7... Bh5 {[%clk 0:02:25.1]} 8. g4 {[%clk 0:02:58.3]}
8... Bg6 {[%clk 0:02:25.4]} 9. Nxg6 {[%clk 0:02:56.3]} 9... hxg6 {[%clk
0:02:26.3]} 10. g5 {[%clk 0:02:57.1]} 10... Ne4 {[%clk 0:02:04.1]} 11. Qb3
{[%clk 0:02:53.2]} 11... Qb6 {[%clk 0:01:48.3]} 12. c5 {[%clk 0:02:44.5]} 12...
Qxb3 {[%clk 0:01:47.7]} 13. axb3 {[%clk 0:02:43.1]} 13... Nxc3 {[%clk
0:01:27.7]} 14. bxc3 {[%clk 0:02:44]} 14... Nd7 {[%clk 0:01:08.2]} 15. b4 {[%clk
0:02:41.3]} 15... a6 {[%clk 0:01:04.3]} 16. h4 {[%clk 0:02:32.2]} 16... e5
{[%clk 0:01:00.1]} 17. Bg2 {[%clk 0:02:21.8]} 17... Be7 {[%clk 0:00:49.6]} 18.
e4 {[%clk 0:02:17.5]} 18... dxe4 {[%clk 0:00:45.6]} 19. Bxe4 {[%clk 0:02:16.7]}
19... exd4 {[%clk 0:00:42]} 20. cxd4 {[%clk 0:02:17.6]} 20... O-O-O {[%clk
0:00:37.5]} 21. b5 {[%clk 0:02:07.8]} 21... axb5 {[%clk 0:00:13.6]} 22. Ra8+
{[%clk 0:01:32.8]} 22... Nb8 {[%clk 0:00:14]} 23. Bf4 {[%clk 0:01:24.2]} 23...
Kd7 {[%clk 0:00:14.2]} 24. h5 {[%clk 0:01:11.5]} 24... gxh5 {[%clk 0:00:12.4]}
25. Bf5+ {[%clk 0:01:08.4]} 25... Ke8 {[%clk 0:00:12.1]} 26. Rxb8 {[%clk
0:00:47.5]} 26... Rxb8 {[%clk 0:00:11.8]} 27. Bxb8 {[%clk 0:00:48.4]} 27... Bxg5
{[%clk 0:00:12.4]} 28. O-O {[%clk 0:00:48.3]} 28... Kd8 {[%clk 0:00:11.6]} 29.
Ra1 {[%clk 0:00:42.3]} 29... Ke7 {[%clk 0:00:10.4]} 30. Be5 {[%clk 0:00:39.1]}
30... f6 {[%clk 0:00:10.3]} 31. Bd6+ {[%clk 0:00:37.4]} 31... Kf7 {[%clk
0:00:10.3]} 32. Ra7 {[%clk 0:00:37.4]} 32... g6 {[%clk 0:00:10]} 33. Rxb7+
{[%clk 0:00:37.6]} 33... Kg8 {[%clk 0:00:10.4]} 34. Be6# {[%clk 0:00:35]} 1-0

[Event "Early-Titled-Tuesday-Blitz-January-30-2024"]
[Site "Chess.com"]
[Date "2024.01.30"]
[Round "5"]
[White "MBA_CHESS_2021"]
[Black "Ron_Weasley_Chess"]
[Result "0-1"]
[WhiteElo "2232"]
[BlackElo "2433"]
[TimeControl "180+1"]
[EndTime "8:57:21 PST"]
[Termination "Ron_Weasley_Chess won by checkmate"]

1. e4 {[%clk 0:03:00.9]} 1... c6 {[%clk 0:02:59.1]} 2. d4 {[%clk 0:02:59.9]}
2... d5 {[%clk 0:02:57.2]} 3. e5 {[%clk 0:03:00.4]} 3... Bf5 {[%clk 0:02:53.9]}
4. g4 {[%clk 0:03:01]} 4... Bd7 {[%clk 0:02:52.1]} 5. c4 {[%clk 0:03:00]} 5...
e6 {[%clk 0:02:40.7]} 6. Nc3 {[%clk 0:02:58.8]} 6... Ne7 {[%clk 0:02:37.1]} 7.
Bg5 {[%clk 0:02:51]} 7... h6 {[%clk 0:02:33]} 8. Bxe7 {[%clk 0:02:49.5]} 8...
Bxe7 {[%clk 0:02:33.9]} 9. cxd5 {[%clk 0:02:49.9]} 9... cxd5 {[%clk 0:02:34.8]}
10. Qb3 {[%clk 0:02:45.2]} 10... Nc6 {[%clk 0:02:31.7]} 11. Nf3 {[%clk
0:02:43.4]} 11... Rc8 {[%clk 0:01:52.6]} 12. Be2 {[%clk 0:02:35.5]} 12... O-O
{[%clk 0:01:48.5]} 13. h4 {[%clk 0:02:34.3]} 13... Qb6 {[%clk 0:01:44.8]} 14.
Qxb6 {[%clk 0:02:32.6]} 14... axb6 {[%clk 0:01:45.7]} 15. g5 {[%clk 0:02:32.2]}
15... h5 {[%clk 0:01:40.8]} 16. Kd2 {[%clk 0:02:27.5]} 16... g6 {[%clk
0:01:38.2]} 17. a3 {[%clk 0:02:26.4]} 17... Na5 {[%clk 0:01:37.3]} 18. Ke3
{[%clk 0:02:20.8]} 18... Nb3 {[%clk 0:01:31.5]} 19. Rad1 {[%clk 0:02:16.5]}
19... Bxa3 {[%clk 0:01:31]} 20. bxa3 {[%clk 0:02:14.3]} 20... Rxc3+ {[%clk
0:01:29.5]} 21. Rd3 {[%clk 0:02:14.9]} 21... Rfc8 {[%clk 0:01:25.5]} 22. Rb1
{[%clk 0:02:15.4]} 22... Rxd3+ {[%clk 0:01:12.5]} 23. Bxd3 {[%clk 0:02:07.6]}
23... Rc3 {[%clk 0:01:11.5]} 24. Nd2 {[%clk 0:01:50.1]} 24... Nc1 {[%clk
0:01:05.7]} 25. Rxc1 {[%clk 0:01:32.9]} 25... Rxc1 {[%clk 0:01:05.3]} 26. Nb1
{[%clk 0:01:12.8]} 26... Rh1 {[%clk 0:00:39.2]} 27. Nc3 {[%clk 0:01:07.4]} 27...
Rxh4 {[%clk 0:00:38.9]} 28. Bb5 {[%clk 0:00:59.9]} 28... Rh3+ {[%clk 0:00:38.5]}
29. f3 {[%clk 0:00:59]} 29... Bc6 {[%clk 0:00:35.8]} 30. Bf1 {[%clk 0:00:55]}
30... Rh2 {[%clk 0:00:34.3]} 31. Ne2 {[%clk 0:00:51.7]} 31... Bb5 {[%clk
0:00:33.3]} 32. Ng3 {[%clk 0:00:35.8]} 32... h4 {[%clk 0:00:33.5]} 33. Bxb5
{[%clk 0:00:30.2]} 33... hxg3 {[%clk 0:00:33.3]} 34. Bd7 {[%clk 0:00:30.9]}
34... Rb2 {[%clk 0:00:24.5]} 35. Bc8 {[%clk 0:00:27.6]} 35... g2 {[%clk
0:00:24.1]} 36. Bxb7 {[%clk 0:00:28.5]} 36... g1=Q+ {[%clk 0:00:24.2]} 37. Kf4
{[%clk 0:00:28]} 37... Qh2+ {[%clk 0:00:19.8]} 38. Ke3 {[%clk 0:00:27.8]} 38...
Qd2# {[%clk 0:00:19.7]} 0-1

[Event "Early-Titled-Tuesday-Blitz-January-30-2024"]
[Site "Chess.com"]
[Date "2024.01.30"]
[Round "5"]
[White "AlexLongson"]
[Black "dennisodessa"]
[Result "1-0"]
[WhiteElo "2450"]
[BlackElo "2606"]
[TimeControl "180+1"]
[EndTime "8:57:25 PST"]
[Termination "AlexLongson won by resignation"]

1. e4 {[%clk 0:03:00.9]} 1... e6 {[%clk 0:03:00.9]} 2. d4 {[%clk 0:03:00.7]}
2... d5 {[%clk 0:03:01.3]} 3. Bd3 {[%clk 0:03:01.3]} 3... dxe4 {[%clk
0:03:01.2]} 4. Bxe4 {[%clk 0:03:02.2]} 4... Nf6 {[%clk 0:03:01]} 5. Bf3 {[%clk
0:03:02.6]} 5... Nbd7 {[%clk 0:03:01.2]} 6. Ne2 {[%clk 0:02:59.2]} 6... e5
{[%clk 0:03:01.8]} 7. Nbc3 {[%clk 0:02:50]} 7... Bd6 {[%clk 0:03:01.2]} 8. O-O
{[%clk 0:02:47.4]} 8... O-O {[%clk 0:02:59.6]} 9. Ng3 {[%clk 0:02:43.8]} 9...
exd4 {[%clk 0:02:53.4]} 10. Qxd4 {[%clk 0:02:42.7]} 10... Ne5 {[%clk 0:02:54.3]}
11. Be2 {[%clk 0:02:30.1]} 11... Bg4 {[%clk 0:02:20.9]} 12. f3 {[%clk
0:02:05.1]} 12... Be6 {[%clk 0:01:55.3]} 13. Nge4 {[%clk 0:01:51.5]} 13... Nxe4
{[%clk 0:01:53.1]} 14. Nxe4 {[%clk 0:01:51.4]} 14... Nc6 {[%clk 0:01:47.8]} 15.
Qf2 {[%clk 0:01:26]} 15... Be5 {[%clk 0:01:41]} 16. c3 {[%clk 0:01:23.9]} 16...
b6 {[%clk 0:01:27.8]} 17. Bg5 {[%clk 0:01:16]} 17... f6 {[%clk 0:01:27.2]} 18.
Be3 {[%clk 0:01:15.8]} 18... Qe7 {[%clk 0:00:58]} 19. f4 {[%clk 0:01:07.4]}
19... Bd6 {[%clk 0:00:58.2]} 20. Nxd6 {[%clk 0:01:05.6]} 20... cxd6 {[%clk
0:00:58.1]} 21. Rfe1 {[%clk 0:00:57.3]} 21... Qc7 {[%clk 0:00:37.7]} 22. b3
{[%clk 0:00:40.8]} 22... Rfe8 {[%clk 0:00:36.1]} 23. Rad1 {[%clk 0:00:39.9]}
23... Rad8 {[%clk 0:00:35.7]} 24. c4 {[%clk 0:00:35.7]} 24... d5 {[%clk
0:00:35.2]} 25. cxd5 {[%clk 0:00:28.8]} 25... Rxd5 {[%clk 0:00:36.1]} 26. Rc1
{[%clk 0:00:23.7]} 26... Rd6 {[%clk 0:00:20.3]} 27. f5 {[%clk 0:00:22.8]} 27...
Bd5 {[%clk 0:00:20.3]} 28. Bf4 {[%clk 0:00:21.2]} 28... Qd7 {[%clk 0:00:15.7]}
29. Bxd6 {[%clk 0:00:21.1]} 29... Qxd6 {[%clk 0:00:16.3]} 30. Red1 {[%clk
0:00:20.5]} 30... Qe5 {[%clk 0:00:14.4]} 31. Rxd5 {[%clk 0:00:19.9]} 31... Qxe2
{[%clk 0:00:10.9]} 32. Qxe2 {[%clk 0:00:20.1]} 32... Rxe2 {[%clk 0:00:11.6]} 33.
Rxc6 {[%clk 0:00:20.4]} 1-0